fUSD/lending_fUSD_20260123
["ID","MTS","AMOUNT","RATE_DAILY","PERIOD"]
[403082070,1769136632682,-500.0,0.00015879,2]
[403082071,1769136632691,-500.0,0.00015879,2]
[403082072,1769136632700,-344.20850981,0.00015879,2]
[403082073,1769136632709,-500.0,0.00015879,2]
[403082074,1769136632718,-500.0,0.00015879,2]
[403082075,1769136632727,-3210.0,0.00015879,2]
[403082076,1769136632736,-1924.0,0.00015879,2]
[403082077,1769136632745,-250.0,0.00015879,2]
[403082078,1769136632755,-250.0,0.00015879,2]
[403082079,1769136632764,-250.0,0.00015879,2]
[403082080,1769136632773,-250.0,0.00015879,2]
[403082081,1769136632782,-250.0,0.00015879,2]
[403082082,1769136632791,-250.0,0.00015879,2]
[403082083,1769136632799,-250.0,0.00015879,2]
[403082084,1769136632808,-250.0,0.00015879,2]
[403082085,1769136632818,-250.0,0.00015879,2]
[403082086,1769136632827,-250.0,0.00015879,2]
[403082087,1769136632836,-250.0,0.00015879,2]
[403082088,1769136632846,-12262.3,0.00015882,2]
[403082089,1769136632855,-923.43,0.00015958,2]
[403082090,1769136632865,-420.0,0.00015968,2]
[403082091,1769136632876,-5131.03519887,0.00016004,2]
[403082092,1769136632885,-7282.32773662,0.00016004,2]
[403082093,1769136632894,-300.0,0.00016042,2]
[403082094,1769136632903,-250.0,0.00016042,2]
[403082095,1769136632913,-600.0,0.00016047,2]
[403082096,1769136632922,-193.0,0.00016047,2]
[403082097,1769136632932,-300.0,0.00016047,2]
[403082098,1769136632941,-250.0,0.00016047,2]
[403082099,1769136632951,-515.67927175,0.00016066,2]
[403082100,1769136632960,-308.81,0.00016163,2]
[403082101,1769136632969,-1075.29888764,0.00016192,2]
[403082102,1769136632979,-2837.73077738,0.00016192,2]
[403082103,1769136632987,-5006.09345828,0.00016192,2]
[403082104,1769136632996,-7488.8164188,0.00016192,2]
[403082105,1769136633006,-10132.6302,0.00016192,2]
[403082106,1769136633015,-163.63,0.00016212,2]
[403082107,1769136633025,-923.43,0.00016232,2]
[403082108,1769136633034,-300.0,0.00016265,2]
[403082109,1769136633043,-250.0,0.00016265,2]
[403082110,1769136633052,-195.0,0.00016265,2]
[403082111,1769136633062,-1680.0,0.00016265,2]
[403082112,1769136633071,-420.0,0.00016272,2]
[403082113,1769136633081,-3240.0,0.00016378,2]
[403082114,1769136633090,-5131.03519887,0.00016384,2]
[403082115,1769136633099,-7282.32773662,0.00016384,2]
[403082116,1769136633109,-720.34468673,0.00016427,2]
[403082117,1769136633119,-500.0,0.00016437,2]
[403082118,1769136633128,-500.0,0.00016437,2]
[403082119,1769136633137,-500.0,0.00016438,2]
[403082120,1769136633147,-500.0,0.00016438,2]
[403082121,1769136633156,-500.0,0.00016438,2]
[403082122,1769136633165,-500.0,0.00016438,2]
[403082123,1769136633174,-500.0,0.00016438,2]
[403082124,1769136633183,-500.0,0.00016438,2]
[403082125,1769136633194,-500.0,0.00016438,2]
[403082126,1769136633203,-500.0,0.00016438,2]
[403082127,1769136633213,-500.0,0.00016438,2]
[403082128,1769136633222,-500.0,0.00016438,2]
[403082129,1769136633231,-500.0,0.00016438,2]
[403082130,1769136633240,-500.0,0.00016438,2]
[403082131,1769136633250,-500.0,0.00016438,2]
[403082132,1769136633259,-500.0,0.00016438,2]
[403082133,1769136633269,-500.0,0.00016438,2]
[403082134,1769136633278,-500.0,0.00016438,2]
[403082135,1769136633287,-500.0,0.00016438,2]
[403082136,1769136633296,-500.0,0.00016438,2]
[403082137,1769136633304,-500.0,0.00016438,2]
[403082138,1769136633314,-500.0,0.00016438,2]
[403082139,1769136633323,-500.0,0.00016438,2]
[403082140,1769136633331,-500.0,0.00016438,2]
[403082141,1769136633340,-500.0,0.00016438,2]
[403082142,1769136633349,-500.0,0.00016438,2]
[403082143,1769136633358,-500.0,0.00016438,2]
[403082144,1769136633367,-500.0,0.00016438,2]
[403082145,1769136633376,-500.0,0.00016438,2]
[403082146,1769136633385,-500.0,0.00016438,2]
[403082147,1769136633394,-500.0,0.00016438,2]
[403082148,1769136633403,-500.0,0.00016438,2]
[403082149,1769136633412,-500.0,0.00016438,2]
[403082150,1769136633421,-500.0,0.00016438,2]
[403082151,1769136633430,-500.0,0.00016438,2]
[403082152,1769136633439,-500.0,0.00016438,2]
[403082153,1769136633448,-500.0,0.00016438,2]
[403082154,1769136633457,-500.0,0.00016438,2]
[403082155,1769136633466,-500.0,0.00016438,2]
[403082156,1769136633476,-500.0,0.00016438,2]
[403082157,1769136633485,-500.0,0.00016438,2]
[403082158,1769136633495,-500.0,0.00016438,2]
[403082159,1769136633504,-500.0,0.00016438,2]
[403082160,1769136633513,-500.0,0.00016438,2]
[403082161,1769136633523,-500.0,0.00016438,2]
[403082162,1769136633532,-500.0,0.00016438,2]
[403082163,1769136633542,-500.0,0.00016438,2]
[403082164,1769136633552,-500.0,0.00016438,2]
[403082165,1769136633562,-500.0,0.00016438,2]
[403082166,1769136633573,-500.0,0.00016438,2]
[403082167,1769136633584,-500.0,0.00016438,2]
[403082168,1769136633594,-500.0,0.00016438,2]
[403082169,1769136633604,-521.34216543,0.00016438,2]
[403082170,1769136633614,-500.0,0.00016438,2]
[403082171,1769136633624,-500.0,0.00016438,2]
[403082172,1769136633635,-500.0,0.00016438,2]
[403082173,1769136633644,-400.0,0.00016438,2]
[403082174,1769136633656,-500.0,0.00016438,2]
[403082175,1769136633665,-500.0,0.00016438,2]
[403082176,1769136633675,-500.0,0.00016438,2]
[403082177,1769136633684,-500.0,0.00016438,2]
[403082178,1769136633693,-500.0,0.00016438,2]
[403082179,1769136633703,-500.0,0.00016438,2]
[403082180,1769136633712,-500.0,0.00016438,2]
[403082181,1769136633723,-500.0,0.00016438,2]
[403082182,1769136633733,-500.0,0.00016493,2]
[403082183,1769136633743,-250.0,0.00016493,2]
[403082184,1769136633752,-296.63086669,0.00016493,2]
[403082185,1769136633761,-500.0,0.00016493,2]
[403082186,1769136633770,-150.0,0.00016493,2]
[403082187,1769136633778,-923.43,0.00016506,2]
[403082188,1769136633788,-4331.92,0.00016532,2]
[403082189,1769136633796,-500.0,0.00016548,2]
[403082190,1769136633805,-500.0,0.00016548,2]
[403082191,1769136633814,-150.0,0.00016548,2]
[403082192,1769136633822,-500.0,0.00016575,2]
[403082193,1769136633832,-200.0,0.00016589,2]
[403082194,1769136633841,-500.0,0.00016603,2]
[403082195,1769136633852,-500.0,0.00016603,2]
[403082196,1769136633862,-200.0,0.00016603,2]
[403082197,1769136633871,-552.43,0.00016619,2]
[403082198,1769136633881,-500.0,0.00016657,2]
[403082199,1769136633890,-509.68602763,0.00016657,2]
[403082200,1769136633901,-500.0,0.00016712,2]
[403082201,1769136633912,-5131.03519887,0.00016763,2]
[403082202,1769136633921,-7282.32773662,0.00016763,2]
[403082203,1769136633930,-500.0,0.00016767,2]
[403082204,1769136633939,-923.43,0.0001678,2]
[403082205,1769136633948,-363.05213651,0.00016822,2]
[403082206,1769136633957,-433.0,0.00016917,2]
[403082207,1769136633967,-156.07,0.0001694,2]
[403082208,1769136633976,-616.0,0.00016978,2]
[403082209,1769136633985,-500.0,0.00017028,2]
[403082210,1769136633995,-500.0,0.00017028,2]
[403082211,1769136634004,-500.0,0.00017028,2]
[403082212,1769136634013,-639.53,0.00017041,2]
[403082213,1769136634022,-923.43,0.00017054,2]
[403082214,1769136634032,-616.0,0.00017074,2]
[403082215,1769136634041,-616.0,0.00017085,2]
[403082216,1769136634050,-5131.03519887,0.00017142,2]
[403082217,1769136634059,-7282.32773662,0.00017142,2]
[403082218,1769136634069,-479.04,0.00017178,2]
[403082219,1769136634078,-468.39,0.00017178,2]
[403082220,1769136634087,-468.39,0.00017178,2]
[403082221,1769136634096,-616.0,0.00017231,2]
[403082222,1769136634106,-552.43,0.00017242,2]
[403082223,1769136634115,-3210.0,0.00017248,2]
[403082224,1769136634124,-200.0,0.00017283,2]
[403082225,1769136634134,-2241.0,0.00017292,2]
[403082226,1769136634143,-616.0,0.00017302,2]
[403082227,1769136634152,-923.43,0.00017328,2]
[403082228,1769136634161,-616.0,0.00017347,2]
[403082229,1769136634171,-2241.0,0.00017365,2]
[403082230,1769136634180,-4976.0,0.00017373,2]
[403082231,1769136634190,-500.0,0.00017386,2]
[403082232,1769136634199,-2241.0,0.00017386,2]
[403082233,1769136634207,-2241.0,0.00017404,2]
[403082234,1769136634216,-809.26,0.00017414,2]
[403082235,1769136634226,-4976.0,0.00017424,2]
[403082236,1769136634235,-1000.0,0.00017456,2]
[403082237,1769136634244,-180.0,0.00017484,2]
[403082238,1769136634253,-500.0,0.0001752,2]
[403082239,1769136634262,-500.0,0.0001752,2]
[403082240,1769136634272,-5131.03519887,0.00017521,2]
[403082241,1769136634281,-7282.32773662,0.00017521,2]
[403082242,1769136634290,-2241.0,0.00017574,2]
[403082243,1769136634298,-923.43308456,0.00017602,2]
[403082244,1769136634307,-500.0,0.00017673,2]
[403082245,1769136634316,-500.0,0.00017673,2]
[403082246,1769136634325,-516.54603341,0.00017673,2]
[403082247,1769136634334,-504.44885816,0.00017673,2]
[403082248,1769136634343,-500.0,0.00017673,2]
[403082249,1769136634352,-500.0,0.00017673,2]
[403082250,1769136634362,-505.04039736,0.00017673,2]
[403082251,1769136634371,-150.0,0.00017698,2]
[403082252,1769136634380,-150.0,0.00017698,2]
[403082253,1769136634389,-150.0,0.00017698,2]
[403082254,1769136634398,-150.0,0.00017698,2]
[403082255,1769136634407,-612.0,0.00017698,2]
[403082256,1769136634416,-500.0,0.00017698,2]
[403082257,1769136634425,-500.0,0.00017698,2]
[403082258,1769136634434,-500.0,0.00017698,2]
[403082259,1769136634443,-150.0,0.00017698,2]
[403082260,1769136634452,-150.0,0.00017698,2]
[403082261,1769136634461,-500.0,0.00017698,2]
[403082262,1769136634470,-278.52110551,0.00017698,2]
[403082263,1769136634478,-500.0,0.00017698,2]
[403082264,1769136634487,-150.0,0.00017698,2]
[403082265,1769136634496,-500.0,0.00017698,2]
[403082266,1769136634505,-500.0,0.00017698,2]
[403082267,1769136634514,-150.0,0.00017698,2]
[403082268,1769136634523,-153.21260792,0.00017753,2]
[403082269,1769136634532,-500.0,0.00017753,2]
[403082270,1769136634542,-612.0,0.00017753,2]
[403082271,1769136634551,-415.96044146,0.00017753,2]
[403082272,1769136634559,-500.0,0.00017753,2]
[403082273,1769136634568,-615.45901226,0.00017753,2]
[403082274,1769136634581,-500.0,0.00017753,2]
[403082275,1769136634590,-243.58384155,0.00017753,2]
[403082276,1769136634599,-500.0,0.00017753,2]
[403082277,1769136634608,-500.0,0.00017753,2]
[403082278,1769136634619,-1000.0,0.00017776,2]
[403082279,1769136634627,-350.0,0.00017808,2]
[403082280,1769136634637,-612.0,0.00017808,2]
[403082281,1769136634646,-500.0,0.00017808,2]
[403082282,1769136634655,-500.0,0.00017808,2]
[403082283,1769136634665,-500.0,0.00017808,2]
[403082284,1769136634674,-282.89807342,0.00017808,2]
[403082285,1769136634683,-150.0,0.00017808,2]
[403082286,1769136634692,-500.0,0.00017808,2]
[403082287,1769136634702,-182.93,0.0001781,2]
[403082288,1769136634712,-2000.0,0.0001782,2]
[403082289,1769136634722,-2000.0,0.0001782,2]
[403082290,1769136634732,-2000.0,0.0001782,2]
[403082291,1769136634741,-2000.0,0.0001782,2]
[403082292,1769136634750,-265.0,0.00017827,2]
[403082293,1769136634758,-4976.0,0.0001784,2]
[403082294,1769136634767,-200.0,0.00017855,2]
[403082295,1769136634776,-200.0,0.00017856,2]
[403082296,1769136634786,-200.0,0.00017856,2]
[403082297,1769136634796,-1000.0,0.00017858,2]
[403082298,1769136634806,-612.0,0.00017862,2]
[403082299,1769136634815,-500.0,0.00017862,2]
[403082300,1769136634824,-500.0,0.00017862,2]
[403082301,1769136634836,-150.0,0.00017863,2]
[403082302,1769136634846,-500.0,0.00017863,2]
[403082303,1769136634856,-552.43,0.00017865,2]
[403082304,1769136634866,-2351.0,0.00017891,2]
[403082305,1769136634876,-1000.0,0.00017899,2]
[403082306,1769136634885,-623.9281,0.00017899,2]
[403082307,1769136634894,-282.37895922,0.00017899,2]
[403082308,1769136634903,-487.0,0.00017899,2]
[403082309,1769136634912,-487.0,0.00017899,2]
[403082310,1769136634921,-487.0,0.00017899,2]
[403082311,1769136634931,-487.0,0.00017899,2]
[403082312,1769136634940,-487.0,0.00017899,2]
[403082313,1769136634949,-487.0,0.00017899,2]
[403082314,1769136634958,-487.0,0.00017899,2]
[403082315,1769136634967,-487.0,0.00017899,2]
[403082316,1769136634976,-487.0,0.00017899,2]
[403082317,1769136634985,-487.0,0.00017899,2]
[403082318,1769136634994,-487.0,0.00017899,2]
[403082319,1769136635003,-487.0,0.00017899,2]
[403082320,1769136635012,-487.0,0.00017899,2]
[403082321,1769136635021,-832.76,0.00017899,2]
[403082322,1769136635030,-282.37895922,0.00017899,2]
[403082323,1769136635039,-282.37895922,0.00017899,2]
[403082324,1769136635048,-282.37895922,0.000179,2]
[403082325,1769136635058,-282.37895922,0.000179,2]
[403082326,1769136635067,-282.37895922,0.000179,2]
[403082327,1769136635076,-282.37895922,0.000179,2]
[403082328,1769136635086,-8326.3464,0.000179,2]
[403082329,1769136635095,-5131.03519887,0.000179,2]
[403082330,1769136635104,-7282.32773662,0.000179,2]
[403082331,1769136635113,-5288.99984321,0.000179,2]
[403082332,1769136635122,-158.84833888,0.000179,2]
[403082333,1769136635131,-500.0,0.000179,2]
[403082334,1769136635140,-5383.0,0.000179,2]
[403082335,1769136635149,-612.0,0.00017917,2]
[403082336,1769136635158,-500.0,0.00017917,2]
[403082337,1769136635168,-500.0,0.00017917,2]
[403082338,1769136635177,-150.0,0.00017918,2]
[403082339,1769136635187,-500.0,0.00017918,2]
[403082340,1769136635196,-200.0,0.00017924,2]
[403082341,1769136635205,-200.0,0.00017953,2]
[403082342,1769136635214,-2241.0,0.00017965,2]
[403082343,1769136635223,-612.0,0.00017972,2]
[403082344,1769136635232,-500.0,0.00017972,2]
[403082345,1769136635241,-500.0,0.00017972,2]
[403082346,1769136635250,-201.25616091,0.00017972,2]
[403082347,1769136635405,-500.0,0.00017972,2]
[403082348,1769136635414,-500.0,0.00017973,2]
[403082349,1769136635424,-150.0,0.00017973,2]
[403082350,1769136635433,-182.93,0.00017989,2]
[403082351,1769136635442,-809.26,0.00017989,2]
[403082352,1769136635453,-151.0,0.00017996,2]
[403082353,1769136635462,-151.0,0.00017997,2]
[403082354,1769136635472,-500.0,0.00017998,2]
[403082355,1769136635481,-500.0,0.00017998,2]
[403082356,1769136635490,-500.0,0.00017998,2]
[403082357,1769136635501,-500.0,0.00017998,2]
[403082358,1769136635510,-519.823686,0.00017998,2]
[403082359,1769136635519,-500.0,0.00017998,2]
[403082360,1769136635528,-500.0,0.00017998,2]
[403082361,1769136635537,-198.27141174,0.00017999,2]
[403082362,1769136635546,-7875.55240351,0.00017999,2]
[403082363,1769136635560,-748.00966555,0.00017999,2]
[403082364,1769136635572,-398.2429221,0.00017999,2]
[403082365,1769136635603,-500.0,0.00017141,2]
[403082366,1769136635614,-225.24030631,0.00017141,2]
[403082367,1769136635622,-18082.6234282,0.00017999,2]
[403082368,1769136635633,-12979.42691393,0.00017999,2]
[403082369,1769136635646,-927.69623708,0.00017999,2]
[403082370,1769136635732,-182.39045045,0.00017141,2]
[403082371,1769136635741,-430.49968212,0.00017141,2]
[403082374,1769136637930,-69.50031788,0.00017141,2]
[403082375,1769136637939,-335.74603653,0.00017141,2]
[403082376,1769136637952,-79.57032297,0.00017141,2]
[403082377,1769136637964,-540.40668287,0.00017141,2]
[403082378,1769136637974,-45726.83057515,0.00017999,2]
[403082379,1769136637990,-8984.54281752,0.00017999,2]
[403082380,1769136638036,-263582.53015686,0.00017999,2]
[403082381,1769136638046,-500.0,0.00017999,2]
[403082382,1769136638056,-500.0,0.00017999,2]
[403082383,1769136638066,-500.0,0.00017999,2]
[403082384,1769136638075,-500.0,0.00017999,2]
[403082385,1769136638084,-500.0,0.00017999,2]
[403082386,1769136638093,-500.0,0.00017999,2]
[403082387,1769136638103,-500.0,0.00017999,2]
[403082388,1769136638113,-500.0,0.00017999,2]
[403082389,1769136638122,-500.0,0.00017999,2]
[403082390,1769136638131,-500.0,0.00017999,2]
[403082391,1769136638141,-500.0,0.00017999,2]
[403082392,1769136638150,-500.0,0.00017999,2]
[403082393,1769136638159,-500.0,0.00017999,2]
[403082394,1769136638169,-500.0,0.00017999,2]
[403082395,1769136638178,-500.0,0.00017999,2]
[403082396,1769136638188,-324.72641391,0.00017999,2]
[403082397,1769136638198,-522.01012098,0.00017999,2]
[403082398,1769136638207,-300.0,0.00017999,2]
[403082399,1769136638216,-500.0,0.00017999,2]
[403082400,1769136638226,-583.83018315,0.00017999,2]
[403082401,1769136638235,-500.0,0.00017999,2]
[403082402,1769136638245,-500.0,0.00017999,2]
[403082404,1769136638255,-500.0,0.00017999,2]
[403082405,1769136638264,-500.0,0.00017999,2]
[403082406,1769136638274,-500.0,0.00017999,2]
[403082407,1769136638283,-380.69489282,0.00017999,2]
[403082408,1769136638292,-538.04406385,0.00017999,2]
[403082409,1769136638302,-250.0,0.00017999,2]
[403082410,1769136638312,-250.0,0.00017999,2]
[403082411,1769136638321,-250.0,0.00017999,2]
[403082412,1769136638331,-250.0,0.00017999,2]
[403082413,1769136638340,-250.0,0.00017999,2]
[403082414,1769136638350,-250.0,0.00017999,2]
[403082416,1769136638359,-250.0,0.00017999,2]
[403082417,1769136638377,-250.0,0.00017999,2]
[403082418,1769136638390,-250.0,0.00017999,2]
[403082419,1769136638400,-250.0,0.00017999,2]
[403082420,1769136638411,-250.0,0.00017999,2]
[403082421,1769136638421,-250.0,0.00017999,2]
[403082422,1769136638430,-250.0,0.00017999,2]
[403082423,1769136638440,-250.0,0.00017999,2]
[403082424,1769136638450,-250.0,0.00017999,2]
[403082425,1769136638460,-250.0,0.00017999,2]
[403082426,1769136638470,-250.0,0.00017999,2]
[403082427,1769136638480,-250.0,0.00017999,2]
[403082428,1769136638490,-250.0,0.00017999,2]
[403082429,1769136638500,-250.0,0.00017999,2]
[403082430,1769136638510,-250.0,0.00017999,2]
[403082431,1769136638520,-250.0,0.00017999,2]
[403082432,1769136638530,-169.946467,0.00017999,2]
[403082433,1769136638539,-518.46700262,0.00017999,2]
[403082434,1769136638550,-637723.85706011,0.00018,2]
[403082435,1769136638563,-17779.38019671,0.00018,2]
[403082437,1769136640221,-7987767.86193919,0.00018,2]
[403082438,1769136640232,-765.44534152,0.00018,2]
[403082439,1769136640244,-2333.0,0.00018,2]
[403082440,1769136640258,-252.636388,0.00018,2]
[403082443,1769136641127,-1.7e-07,0.00018,2]
[403082444,1769136641138,-99053.42607217,0.00018,2]
[403082445,1769136641149,-776.90309751,0.00018,2]
[403082446,1769136641160,-3017.26,0.00018,2]
[403082447,1769136641171,-1985.97220089,0.00018,2]
[403082448,1769136641181,-42957.09789578,0.00018,2]
[403082449,1769136641200,-1357.37058373,0.00018,2]
[403082450,1769136641211,-575.46825304,0.00018,2]
[403082451,1769136641222,-2522.59390257,0.00018,2]
[403082452,1769136641232,-292.0,0.00018,2]
[403082453,1769136641243,-1760.88668995,0.00018,2]
[403082454,1769136641254,-1357.44345913,0.00018,2]
[403082455,1769136641265,-365.50490218,0.00018,2]
[403082466,1769136643529,-419.42853479,0.00018,2]
[403082467,1769136643541,-1011.20749578,0.00018,2]
[403082468,1769136643552,-1632.89,0.00018,2]
[403082469,1769136643567,-1676.38428101,0.00018,2]
[403082470,1769136643601,-1426.9169098,0.00018,2]
[403082471,1769136643613,-2207.96057256,0.00018,2]
[403082472,1769136643626,-1876.43942744,0.00018,2]
[403082473,1769136643638,-2353.88008,0.00018,2]
[403082474,1769136643652,-710.92467494,0.00018,2]
[403082477,1769136645927,-86869.90523727,0.00018,2]
[403082478,1769136645939,-953.7,0.00018,2]
[403082479,1769136646124,-39741.16050803,0.00018,2]
[403082480,1769136646245,-629.2,0.00018,2]
[403082482,1769136684852,-288.68407899,0.00014588,2]
[403082483,1769136713716,500.0,0.00014587,2]
[403082484,1769136714019,500.0,0.00014587,2]
[403082485,1769136730562,500.0,0.00014587,2]
[403082486,1769136730791,500.0,0.00014587,2]
[403082487,1769136741275,500.0,0.00014587,2]
[403082488,1769136741805,500.0,0.00014587,2]
[403082489,1769136754791,522.01012098,0.00014587,2]
[403082490,1769136787179,298.47235783,0.00014587,2]
[403082491,1769136820487,502.45286681,0.00014587,2]
[403082492,1769136836220,500.0,0.00014587,2]
[403082493,1769136836463,500.0,0.00014587,2]
[403082513,1769136922630,378.25,0.000155,2]
[403082514,1769136924183,500.0,0.00014587,2]
[403082515,1769136924433,502.09877135,0.00014587,2]
[403082527,1769137012785,162.46,0.000155,2]
[403082528,1769137014230,500.0,0.00014587,2]
[403082529,1769137014447,505.73656178,0.00014587,2]
[403082531,1769137030177,606.50090436,0.00014587,2]
[403082565,1769137132123,166.66,0.00015271,2]
[403082580,1769137213949,5534.0,0.00016,3]
[403082581,1769137245836,5534.0,0.00016,3]
[403082582,1769137250671,500.0,0.00014587,2]
[403082584,1769137276755,2980.0,0.00016,3]
[403082637,1769137497403,5534.0,0.00016,5]
[403082647,1769137620823,1145.81781612,0.00015,2]
[403082648,1769137632280,-354.18218388,0.00015,2]
[403082649,1769137638521,213.99,0.00015562,3]
[403082650,1769137647864,-250.0,0.00015269,2]
[403082652,1769137748359,2986.345401,0.00015377,2]
[403082693,1769137832756,-253.87017634,0.00015455,2]
[403082695,1769137832765,-279.0,0.00015455,2]
[403082697,1769137832775,-300.0,0.00015497,2]
[403082699,1769137832784,-200.0,0.00015538,2]
[403082701,1769137832793,-300.0,0.00015546,2]
[403082703,1769137832802,-300.0,0.00015546,2]
[403082705,1769137832811,-211.10537828,0.00015546,2]
[403082707,1769137832821,-692.22,0.00015564,2]
[403082709,1769137832830,-300.0,0.0001559,2]
[403082711,1769137832839,-300.0,0.0001559,2]
[403082713,1769137832848,-1200.0,0.0001559,2]
[403082715,1769137832858,-300.0,0.00015591,2]
[403082716,1769137832867,-166.66,0.00015592,2]
[403082717,1769137832877,-500.0,0.00015592,2]
[403082718,1769137832885,-500.0,0.00015592,2]
[403082719,1769137832896,-500.0,0.00015592,2]
[403082720,1769137832907,-500.0,0.00015592,2]
[403082721,1769137832916,-323.39,0.00015624,2]
[403082722,1769137832925,-3210.0,0.00015863,2]
[403082723,1769137832935,-323.39,0.00015898,2]
[403082724,1769137832946,-166.66,0.00015914,2]
[403082725,1769137832955,-151.0,0.00015918,2]
[403082726,1769137832966,-500.0,0.00016099,2]
[403082727,1769137832976,-161.0,0.000161,2]
[403082728,1769137832985,-161.0,0.000161,2]
[403082729,1769137832995,-323.4,0.00016172,2]
[403082730,1769137833005,-166.66,0.00016235,2]
[403082731,1769137833014,-161.0,0.000163,2]
[403082732,1769137833023,-161.0,0.000163,2]
[403082733,1769137833032,-2374.09,0.00016355,2]
[403082734,1769137833043,-503.0,0.00016411,2]
[403082735,1769137833053,-250.0,0.000165,2]
[403082736,1769137833063,-2506.58,0.00016545,2]
[403082737,1769137833073,-166.66,0.00016556,2]
[403082738,1769137833082,-161.0,0.000167,2]
[403082739,1769137833092,-161.0,0.000167,2]
[403082740,1769137833102,-247.05,0.00016714,2]
[403082741,1769137833111,-4882.61866232,0.00016715,2]
[403082742,1769137833121,-550.0,0.00016716,2]
[403082743,1769137833130,-237.0033,0.00016717,2]
[403082744,1769137833140,-2500.0,0.00016717,2]
[403082745,1769137833150,-250.0,0.00016807,2]
[403082746,1769137833159,-250.0,0.00016807,2]
[403082747,1769137833169,-250.0,0.00016807,2]
[403082748,1769137833178,-250.0,0.00016807,2]
[403082749,1769137833187,-250.0,0.00016807,2]
[403082750,1769137833196,-250.0,0.00016807,2]
[403082751,1769137833206,-250.0,0.00016807,2]
[403082752,1769137833215,-500.0,0.00016807,2]
[403082753,1769137833224,-250.0,0.00016807,2]
[403082754,1769137833234,-500.0,0.00016807,2]
[403082755,1769137833243,-250.0,0.00016807,2]
[403082756,1769137833253,-500.0,0.00016807,2]
[403082757,1769137833265,-151.0,0.00016807,2]
[403082758,1769137833274,-305.70455507,0.00016807,2]
[403082759,1769137833284,-500.52951477,0.00016807,2]
[403082760,1769137833293,-500.0,0.00016807,2]
[403082761,1769137833303,-151.0,0.00016807,2]
[403082762,1769137833312,-500.0,0.00016807,2]
[403082763,1769137833322,-151.0,0.00016807,2]
[403082764,1769137833332,-500.0,0.00016807,2]
[403082765,1769137833341,-151.0,0.00016807,2]
[403082766,1769137833351,-500.0,0.00016807,2]
[403082767,1769137833361,-151.0,0.00016807,2]
[403082768,1769137833370,-151.0,0.00016807,2]
[403082769,1769137833381,-500.0,0.00016807,2]
[403082770,1769137833390,-500.0,0.00016807,2]
[403082771,1769137833400,-151.0,0.00016807,2]
[403082772,1769137833410,-500.0,0.00016807,2]
[403082773,1769137833420,-151.0,0.00016807,2]
[403082774,1769137833429,-500.0,0.00016807,2]
[403082775,1769137833439,-151.0,0.00016807,2]
[403082776,1769137833448,-289.58319272,0.00016807,2]
[403082777,1769137833459,-500.0,0.00016807,2]
[403082778,1769137833469,-500.0,0.00016807,2]
[403082779,1769137833479,-500.0,0.00016807,2]
[403082780,1769137833489,-500.0,0.00016807,2]
[403082781,1769137833499,-500.0,0.00016807,2]